bitfinex-derivatives/quotes_BNBF0:USTF0_20250710
["timestamp","ask_amount","ask_price","bid_price","bid_amount"]
[1752141878794,3.16458315,670.34,668.66,0.25982171]
[1752141879095,1.50559188,670.33,668.66,0.25982171]
[1752141879393,1.50559188,670.32,668.66,0.25982171]
[1752141879591,1.50559188,670.31,668.66,0.25982171]
[1752141879794,1.50559188,670.3,668.75,5.52994749]
[1752141879989,1.50559188,670.29,668.75,5.52994749]
[1752141880189,1.50559188,670.28,668.75,5.52994749]
[1752141880390,1.50559188,670.27,668.66,0.25982171]
[1752141880595,1.50559188,670.26,668.66,0.25982171]
[1752141880796,1.50559188,670.25,668.66,0.25982171]
[1752141880996,1.50559188,670.24,668.66,0.25982171]
[1752141881196,1.50559188,670.23,668.66,0.25982171]
[1752141881394,1.50559188,670.22,668.66,0.25982171]
[1752141881697,1.50559188,670.21,668.66,0.25982171]
[1752141881893,1.50559188,670.2,668.66,0.25982171]
[1752141882097,1.50559188,670.19,668.66,0.25982171]
[1752141882397,1.50559188,670.18,668.66,0.25982171]
[1752141882593,1.50559188,670.17,668.66,0.25982171]
[1752141882896,1.50559188,670.16,668.66,0.25982171]
[1752141883097,1.50559188,670.15,668.66,0.25982171]
[1752141883394,1.50559188,670.14,668.66,0.25982171]
[1752141883591,1.50559188,670.13,668.66,0.25982171]
[1752141883793,1.50559188,670.12,668.66,0.25982171]
[1752141884099,1.50559188,670.11,668.66,0.25982171]
[1752141884298,1.65899127,670.46,668.66,0.25982171]
[1752141884494,1.50913655,670.45,668.66,0.25982171]
[1752141884696,1.50913655,670.44,668.66,0.25982171]
[1752141884893,1.50913655,670.43,668.66,0.25982171]
[1752141885098,1.50913655,670.42,668.66,0.25982171]
[1752141885300,1.65899127,670.4,668.66,0.25982171]
[1752141885499,1.50913655,670.39,668.66,0.25982171]
[1752141885701,1.50913655,670.38,668.66,0.25982171]
[1752141885902,1.50913655,670.37,668.66,0.25982171]
[1752141886097,1.50913655,670.36,668.66,0.25982171]
[1752141886303,1.50913655,670.35,668.66,0.25982171]
[1752141886598,1.50913655,670.34,668.66,0.25982171]
[1752141886798,1.65899127,670.47,668.66,0.25982171]
[1752141886799,1.50913655,670.33,668.66,0.25982171]
[1752141887004,1.50913655,670.32,668.66,0.25982171]
[1752141887203,1.50913655,670.31,668.66,0.25982171]
[1752141887504,1.65899127,670.46,668.66,0.25982171]
[1752141887505,1.50913655,670.3,668.66,0.25982171]
[1752141887701,1.50913655,670.29,668.68,5.52994749]
[1752141888000,1.50913655,670.28,668.68,5.52994749]
[1752141888301,1.50913655,670.27,668.66,0.25982171]
[1752141888502,1.50913655,670.26,668.66,0.25982171]
[1752141888804,1.50913655,670.25,668.66,0.25982171]
[1752141889105,1.65899127,670.47,668.66,0.25982171]
[1752141889106,1.50913655,670.24,668.66,0.25982171]
[1752141889405,1.50913655,670.23,668.66,0.25982171]
[1752141889705,0.25975868,670.71,668.66,0.25982171]
[1752141889706,1.50913655,670.22,668.66,0.25982171]
[1752141889901,1.50913655,670.21,668.66,0.25982171]
[1752141890104,1.50913655,670.2,668.66,0.25982171]
[1752141890304,1.50913655,670.19,668.66,0.25982171]
[1752141890502,1.50913655,670.18,668.66,0.25982171]
[1752141890700,1.50913655,670.17,668.66,0.25982171]
[1752141891004,1.50913655,670.16,668.66,0.25982171]
[1752141891202,1.50913655,670.15,668.66,0.25982171]
[1752141891406,1.50913655,670.14,668.66,0.25982171]
[1752141891702,1.50913655,670.13,668.66,0.25982171]
[1752141891905,1.50913655,670.12,668.66,0.25982171]
[1752141892105,1.50913655,670.11,668.66,0.25982171]
[1752141892306,1.50913655,670.1,668.66,0.25982171]
[1752141892506,1.50913655,670.09,668.66,0.25982171]
[1752141892807,1.65899127,670.46,668.66,0.25982171]
[1752141893006,1.50897471,670.45,668.66,0.25982171]
[1752141893207,1.50897471,670.44,668.66,0.25982171]
[1752141893407,1.50897471,670.43,668.66,0.25982171]
[1752141893607,1.50897471,670.42,668.66,0.25982171]
[1752141893805,1.50897471,670.41,668.66,0.25982171]
[1752141894008,1.50897471,670.4,668.66,0.25982171]
[1752141894209,1.50897471,670.39,668.66,0.25982171]
[1752141894408,1.50897471,670.38,668.66,0.25982171]
[1752141894707,1.65899127,670.46,668.66,0.25982171]
[1752141894708,1.50897471,670.37,668.66,0.25982171]
[1752141894904,1.50897471,670.36,668.66,0.25982171]
[1752141895207,1.50897471,670.35,668.66,0.25982171]
[1752141895405,1.50897471,670.34,668.66,0.25982171]
[1752141895608,1.50897471,670.33,668.66,0.25982171]
[1752141895807,1.50897471,670.32,668.66,0.25982171]
[1752141896007,1.50897471,670.31,668.66,0.25982171]
[1752141896204,1.50897471,670.3,668.66,0.25982171]
[1752141896405,1.50897471,670.29,668.66,0.25982171]
[1752141896712,1.50897471,670.28,668.66,0.25982171]
[1752141897008,1.50897471,670.27,668.66,0.25982171]
[1752141897204,1.50897471,670.26,668.66,0.25982171]
[1752141897404,1.50897471,670.25,668.66,0.25982171]
[1752141897606,1.50897471,670.24,668.66,0.25982171]
[1752141897806,1.50897471,670.23,668.66,0.25982171]
[1752141898104,1.50897471,670.22,668.66,0.25982171]
[1752141898405,1.50897471,670.21,668.66,0.25982171]
[1752141898708,1.50897471,670.2,668.66,0.25982171]
[1752141898909,1.50897471,670.19,668.66,0.25982171]
[1752141899106,1.50897471,670.18,668.66,0.25982171]
[1752141899305,1.50897471,670.17,668.66,0.25982171]
[1752141899504,1.50897471,670.16,668.66,0.25982171]
[1752141899706,1.50897471,670.15,668.66,0.25982171]
[1752141899905,1.65899127,670.37,668.66,0.25982171]
[1752141899906,1.50897471,670.14,668.66,0.25982171]
[1752141900209,1.50897471,670.13,668.66,0.25982171]
[1752141900509,1.50897471,670.12,668.66,0.25982171]
[1752141900706,1.50897471,670.11,668.66,0.25982171]
[1752141900907,1.50897471,670.1,668.66,0.25982171]
[1752141901109,1.50897471,670.09,668.66,0.25982171]
[1752141901308,1.50897471,670.08,668.66,0.25982171]
[1752141901509,1.50897471,670.07,668.66,0.25982171]
[1752141901706,1.50897471,670.06,668.66,0.25982171]
[1752141901910,1.50897471,670.05,668.66,0.25982171]
[1752141902110,1.50897471,670.04,668.66,0.25982171]
[1752141902308,1.50897471,670.03,668.66,0.25982171]
[1752141902510,1.50897471,670.02,668.66,0.25982171]
[1752141902708,1.50897471,670.01,668.66,0.25982171]
[1752141902913,1.50897471,670.0,668.66,0.25982171]
[1752141903113,1.50897471,669.99,668.66,0.25982171]
[1752141903313,1.65899127,670.39,668.66,0.25982171]
[1752141903611,1.50922036,670.38,668.66,0.25982171]
[1752141903813,1.50922036,670.37,668.66,0.25982171]
[1752141904108,1.50922036,670.36,668.66,0.25982171]
[1752141904311,1.50922036,670.35,668.66,0.25982171]
[1752141904511,1.50922036,670.34,668.66,0.25982171]
[1752141904711,1.50922036,670.33,668.66,0.25982171]
[1752141904914,1.50922036,670.32,668.66,0.25982171]
[1752141905115,1.50922036,670.31,668.66,0.25982171]
[1752141905412,1.50922036,670.3,668.66,0.25982171]
[1752141905612,1.50922036,670.29,668.66,0.25982171]
[1752141905811,1.50922036,670.28,668.66,0.25982171]
[1752141906012,1.50922036,670.27,668.66,0.25982171]
[1752141906211,1.50922036,670.26,668.66,0.25982171]
[1752141906416,1.50922036,670.25,668.66,0.25982171]
[1752141906613,1.50922036,670.24,668.66,0.25982171]
[1752141906814,1.50922036,670.23,668.66,0.25982171]
[1752141907018,1.50922036,670.22,668.66,0.25982171]
[1752141907216,1.50922036,670.21,668.66,0.25982171]
[1752141907418,1.50922036,670.2,668.66,0.25982171]
[1752141907615,1.50922036,670.19,668.66,0.25982171]
[1752141907814,1.50922036,670.18,668.66,0.25982171]
[1752141908021,1.50922036,670.17,668.66,0.25982171]
[1752141908319,1.50922036,670.16,668.66,0.25982171]
[1752141908519,1.50922036,670.15,668.66,0.25982171]
[1752141908718,1.50922036,670.14,668.66,0.25982171]
[1752141908921,1.50922036,670.13,668.66,0.25982171]
[1752141909217,1.50922036,670.12,668.66,0.25982171]
[1752141909416,1.50922036,670.11,668.66,0.25982171]
[1752141909721,1.50922036,670.1,668.66,0.25982171]
[1752141909918,1.50922036,670.09,668.66,0.25982171]
[1752141910217,1.50922036,670.08,668.66,0.25982171]
[1752141910418,1.50922036,670.07,668.66,0.25982171]
[1752141910622,1.50922036,670.06,668.66,0.25982171]
[1752141910822,1.50922036,670.05,668.66,0.25982171]
[1752141911023,1.50922036,670.04,668.66,0.25982171]
[1752141911223,1.50922036,670.03,668.66,0.25982171]
[1752141911424,1.50922036,670.02,668.66,0.25982171]
[1752141911626,1.65899127,670.36,668.66,0.25982171]
[1752141911825,1.51043349,670.35,668.66,0.25982171]
[1752141912023,1.51043349,670.34,668.66,0.25982171]
[1752141912223,1.51043349,670.33,668.66,0.25982171]
[1752141912426,1.51043349,670.32,668.66,0.25982171]
[1752141912624,1.51043349,670.31,668.66,0.25982171]
[1752141912825,1.51043349,670.3,668.66,0.25982171]
[1752141913022,1.51043349,670.29,668.66,0.25982171]
[1752141913322,1.51043349,670.28,668.66,0.25982171]
[1752141913522,1.51043349,670.27,668.66,0.25982171]
[1752141913726,1.51043349,670.26,668.66,0.25982171]
[1752141913926,1.51043349,670.25,668.66,0.25982171]
[1752141914122,1.51043349,670.24,668.66,0.25982171]
[1752141914421,1.51043349,670.23,668.66,0.25982171]
[1752141914626,1.51043349,670.22,668.66,0.25982171]
[1752141914827,1.51043349,670.21,668.66,0.25982171]
[1752141915025,1.51043349,670.2,668.66,0.25982171]
[1752141915223,1.51043349,670.19,668.66,0.25982171]
[1752141915427,1.51043349,670.18,668.66,0.25982171]
[1752141915625,1.51043349,670.17,668.66,0.25982171]
[1752141915924,1.51043349,670.16,668.66,0.25982171]
[1752141916124,1.51043349,670.15,668.66,0.25982171]
[1752141916325,1.51043349,670.14,668.66,0.25982171]
[1752141916529,1.51043349,670.13,668.66,0.25982171]
[1752141916729,1.51043349,670.12,668.66,0.25982171]
[1752141916931,1.51043349,670.11,668.66,0.25982171]
[1752141917226,1.51043349,670.1,668.66,0.25982171]
[1752141917424,1.51043349,670.09,668.66,0.25982171]
[1752141917625,1.51043349,670.08,668.66,0.25982171]
[1752141917828,1.51043349,670.07,668.66,0.25982171]
[1752141918029,1.51043349,670.06,668.66,0.25982171]
[1752141918327,1.51043349,670.05,668.66,0.25982171]
[1752141918527,1.51043349,670.04,668.66,0.25982171]
[1752141918832,1.51043349,670.03,668.66,0.25982171]
[1752141919032,1.51043349,670.02,668.66,0.25982171]
[1752141919228,1.51043349,670.01,668.66,0.25982171]
[1752141919433,1.51043349,670.0,668.66,0.25982171]
[1752141919631,1.51043349,669.99,668.66,0.25982171]
[1752141919833,1.65899127,670.34,668.66,0.25982171]
[1752141920029,1.51228038,670.33,668.66,0.25982171]
[1752141920230,1.51228038,670.32,668.66,0.25982171]
[1752141920533,1.51228038,670.31,668.66,0.25982171]
[1752141920829,1.51228038,670.3,668.66,0.25982171]
[1752141921129,1.51228038,670.29,668.66,0.25982171]
[1752141921330,1.51228038,670.28,668.66,0.25982171]
[1752141921531,1.51228038,670.27,668.66,0.25982171]
[1752141921731,1.51228038,670.26,668.66,0.25982171]
[1752141921932,1.51228038,670.25,668.66,0.25982171]
[1752141922134,1.51228038,670.24,668.66,0.25982171]
[1752141922329,1.51228038,670.23,668.66,0.25982171]
[1752141922532,1.51228038,670.22,668.66,0.25982171]
[1752141922837,1.51228038,670.21,668.66,0.25982171]
[1752141923136,1.65899127,670.33,668.66,0.25982171]
[1752141923137,1.51228038,670.2,668.66,0.25982171]
[1752141923338,1.51228038,670.19,668.66,0.25982171]
[1752141923537,1.51228038,670.18,668.66,0.25982171]
[1752141923732,1.51228038,670.17,668.66,0.25982171]
[1752141924037,1.51228038,670.16,668.66,0.25982171]
[1752141924237,1.51228038,670.15,668.66,0.25982171]
[1752141924537,1.51228038,670.14,668.66,0.25982171]
[1752141924836,1.51228038,670.13,668.66,0.25982171]
[1752141925135,1.51228038,670.12,668.66,0.25982171]
[1752141925332,1.51228038,670.11,668.66,0.25982171]
[1752141925537,1.51228038,670.1,668.66,0.25982171]
[1752141925738,1.51228038,670.09,668.66,0.25982171]
[1752141925939,1.65899127,670.45,668.66,0.25982171]
[1752141926234,1.51280239,670.44,668.66,0.25982171]
[1752141926436,1.51280239,670.43,668.66,0.25982171]
[1752141926738,1.51280239,670.42,668.66,0.25982171]
[1752141927040,1.51280239,670.41,668.66,0.25982171]
[1752141927335,1.51280239,670.4,668.66,5.7897692]
[1752141927535,1.51280239,670.39,668.66,5.7897692]
[1752141927737,1.51280239,670.38,668.66,5.7897692]
[1752141927935,1.51280239,670.37,668.66,5.7897692]
[1752141928133,1.51280239,670.36,668.66,5.7897692]
[1752141928335,1.51280239,670.35,668.66,0.25982171]
[1752141928639,1.51280239,670.34,668.66,0.25982171]
[1752141928836,0.25975868,670.71,668.66,0.25982171]
[1752141928837,1.51280239,670.33,668.66,5.7897692]
[1752141929035,1.51280239,670.32,668.66,5.7897692]
[1752141929240,1.51280239,670.31,668.66,5.7897692]
[1752141929540,1.51280239,670.3,668.66,5.7897692]
[1752141929836,1.51280239,670.29,668.79,5.52994749]
[1752141930037,1.51280239,670.28,668.79,5.52994749]
[1752141930239,1.51280239,670.27,668.79,5.52994749]
[1752141930437,1.51280239,670.26,668.79,5.52994749]
[1752141930640,1.51280239,670.25,668.79,5.52994749]
[1752141930840,1.51280239,670.24,668.79,5.52994749]
[1752141931037,1.51280239,670.23,668.79,5.52994749]
[1752141931240,1.65899127,670.42,668.79,5.52994749]
[1752141931241,1.51280239,670.22,668.79,5.52994749]
[1752141931442,1.51280239,670.21,668.79,5.52994749]
[1752141931641,1.51280239,670.2,668.79,5.52994749]
[1752141931842,1.51280239,670.19,668.8,5.52994749]
[1752141932138,1.51280239,670.18,668.8,5.52994749]
[1752141932340,1.51280239,670.17,668.8,5.52994749]
[1752141932542,1.51280239,670.16,668.81,5.52994749]
[1752141932838,1.51280239,670.15,668.81,5.52994749]
[1752141933039,1.51280239,670.14,668.81,5.52994749]
[1752141933242,1.51280239,670.13,668.81,5.52994749]
[1752141933438,1.51280239,670.12,668.8,5.52994749]
[1752141933644,1.51280239,670.11,668.8,5.52994749]
[1752141933840,1.51280239,670.1,668.8,5.52994749]
[1752141934046,1.65899127,670.41,668.8,5.52994749]
[1752141934245,1.51340086,670.4,668.8,5.52994749]
[1752141934440,1.51340086,670.39,668.8,5.52994749]
[1752141934647,1.51340086,670.38,668.8,5.52994749]
[1752141934842,1.51340086,670.37,668.8,5.52994749]
[1752141935141,1.51340086,670.36,668.74,5.52994749]
[1752141935447,1.51340086,670.35,668.81,5.52994749]
[1752141935641,1.65899127,670.41,668.81,5.52994749]
[1752141935642,1.65899127,670.24,668.81,5.52994749]
[1752141935941,3.30543469,670.58,668.81,5.52994749]
[1752141935942,1.65899127,670.21,668.81,5.52994749]
[1752141936142,1.65899127,670.19,668.71,5.52994749]
[1752141936347,1.51340086,670.18,668.71,5.52994749]
[1752141936646,1.51340086,670.17,668.74,5.52994749]
[1752141936845,1.51340086,670.16,668.74,5.52994749]
[1752141937041,1.51340086,670.15,668.74,5.52994749]
[1752141937342,1.51340086,670.14,668.74,5.52994749]
[1752141937647,1.51340086,670.13,668.66,0.25982171]
[1752141937947,1.51340086,670.12,668.66,0.25982171]
[1752141938242,1.51340086,670.11,668.66,0.25982171]
[1752141938446,1.51340086,670.1,668.66,0.25982171]
[1752141938643,1.51340086,670.09,668.66,0.25982171]
[1752141938842,1.51340086,670.08,668.66,0.25982171]
[1752141939045,1.51340086,670.07,668.66,0.25982171]
[1752141939245,1.51340086,670.06,668.66,0.25982171]
[1752141939446,1.51340086,670.05,668.66,0.25982171]
[1752141939742,1.51340086,670.04,668.66,0.25982171]
[1752141939946,1.51340086,670.03,668.66,0.25982171]
[1752141940147,1.51340086,670.02,668.66,0.25982171]
[1752141940344,1.51340086,670.01,668.66,0.25982171]
[1752141940547,1.51340086,670.0,668.66,0.25982171]
[1752141940849,1.51340086,669.99,668.66,0.25982171]
[1752141941144,1.51340086,669.98,668.66,0.25982171]
[1752141941361,1.51340086,669.97,668.66,0.25982171]
[1752141941549,1.51340086,669.96,668.66,0.25982171]
[1752141941749,1.51340086,669.95,668.66,0.25982171]
[1752141942048,1.51340086,669.94,668.66,0.25982171]
[1752141942348,1.51340086,669.93,668.66,0.25982171]
[1752141942548,1.51340086,669.92,668.66,0.25982171]
[1752141942745,1.51340086,669.91,668.66,0.25982171]
[1752141942946,1.51340086,669.9,668.66,0.25982171]
[1752141943144,1.51340086,669.89,668.66,0.25982171]
[1752141943348,1.65899127,670.29,668.66,0.25982171]
[1752141943349,1.51340086,669.88,668.66,0.25982171]
[1752141943550,1.65899127,670.28,668.66,0.25982171]
[1752141943745,1.51332123,670.27,668.66,0.25982171]
[1752141943949,1.51332123,670.26,668.66,0.25982171]
[1752141944149,1.51332123,670.25,668.66,0.25982171]
[1752141944350,1.51332123,670.24,668.66,0.25982171]
[1752141944548,1.51332123,670.23,668.66,0.25982171]
[1752141944848,1.51332123,670.22,668.66,0.25982171]
[1752141945049,1.51332123,670.21,668.66,0.25982171]
[1752141945249,1.51332123,670.2,668.66,0.25982171]
[1752141945449,1.51332123,670.19,668.66,0.25982171]
[1752141945654,1.51346543,670.18,668.66,0.25982171]
[1752141945951,1.51346543,670.17,668.66,0.25982171]
[1752141946149,1.51346543,670.16,668.66,0.25982171]
[1752141946354,1.51346543,670.15,668.66,0.25982171]
[1752141946556,1.51346543,670.14,668.66,0.25982171]
[1752141946752,1.51346543,670.13,668.66,0.25982171]
[1752141947052,1.51346543,670.12,668.66,0.25982171]
[1752141947256,1.51346543,670.11,668.66,0.25982171]
[1752141947452,1.51346543,670.1,668.66,0.25982171]
[1752141947654,1.51346543,670.09,668.66,0.25982171]
[1752141947852,1.51346543,670.08,668.66,0.25982171]
[1752141948054,1.51346543,670.07,668.66,0.25982171]
[1752141948256,1.51346543,670.06,668.66,0.25982171]
[1752141948453,1.51346543,670.05,668.66,0.25982171]
[1752141948656,1.51346543,670.04,668.66,0.25982171]
[1752141948859,1.51346543,670.03,668.66,0.25982171]
[1752141949057,1.66945215,670.41,668.66,0.25982171]
[1752141949257,1.51359071,670.4,668.66,0.25982171]
[1752141949455,1.51359071,670.39,668.66,0.25982171]
[1752141949656,1.51359071,670.38,668.66,0.25982171]
[1752141949857,1.51359071,670.37,668.66,0.25982171]
[1752141950160,1.51359071,670.36,668.66,0.25982171]
[1752141950457,1.51359071,670.35,668.66,0.25982171]
[1752141950660,1.51359071,670.34,668.66,0.25982171]
[1752141950860,1.51359071,670.33,668.66,0.25982171]
[1752141951057,1.51359071,670.32,668.66,0.25982171]
[1752141951360,1.51359071,670.31,668.66,0.25982171]
[1752141951560,1.51359071,670.3,668.66,0.25982171]
[1752141951764,1.51359071,670.29,668.66,0.25982171]
[1752141951962,1.51359071,670.28,668.66,0.25982171]
[1752141952258,1.51359071,670.27,668.66,0.25982171]
[1752141952561,1.51359071,670.26,668.66,0.25982171]
[1752141952757,1.51359071,670.25,668.66,0.25982171]
[1752141952958,1.51359071,670.24,668.66,0.25982171]
[1752141953162,1.51359071,670.23,668.66,0.25982171]
[1752141953362,1.51359071,670.22,668.66,0.25982171]
[1752141953559,1.51359071,670.21,668.66,0.25982171]
[1752141953860,1.51359071,670.2,668.66,0.25982171]
[1752141954163,1.51359071,670.19,668.66,0.25982171]
[1752141954459,1.51359071,670.18,668.66,0.25982171]
[1752141954664,1.51359071,670.17,668.66,0.25982171]
[1752141954862,1.51359071,670.16,668.66,0.25982171]
[1752141955062,1.51359071,670.15,668.66,0.25982171]
[1752141955260,1.51359071,670.14,668.66,0.25982171]
[1752141955465,1.51359071,670.13,668.66,0.25982171]
[1752141955661,1.51359071,670.12,668.66,0.25982171]
[1752141955860,1.51359071,670.11,668.66,0.25982171]
[1752141956066,1.51359071,670.1,668.66,0.25982171]
[1752141956260,1.51359071,670.09,668.66,0.25982171]
[1752141956565,1.51359071,670.08,668.66,0.25982171]
[1752141956862,1.51359071,670.07,668.66,0.25982171]
[1752141957065,1.66945215,670.43,668.66,0.25982171]
[1752141957270,3.18205397,670.42,668.66,0.25982171]
[1752141957465,1.51260182,670.41,668.66,0.25982171]
[1752141957665,1.51260182,670.4,668.66,0.25982171]
[1752141957865,1.51260182,670.39,668.66,0.25982171]
[1752141958064,1.51260182,670.38,668.66,0.25982171]
[1752141958262,1.51260182,670.37,668.66,0.25982171]
[1752141958465,1.51260182,670.36,668.66,0.25982171]
[1752141958665,1.51260182,670.35,668.66,0.25982171]
[1752141958864,1.51260182,670.34,668.66,0.25982171]
[1752141959063,1.51260182,670.33,668.66,0.25982171]
[1752141959367,1.51260182,670.32,668.66,0.25982171]
[1752141959563,1.51260182,670.31,668.66,0.25982171]
[1752141959767,1.51260182,670.3,668.66,0.25982171]
[1752141959962,1.51260182,670.29,668.66,0.25982171]
[1752141960168,1.51260182,670.28,668.66,0.25982171]
[1752141960368,1.51260182,670.27,668.66,0.25982171]
[1752141960566,1.51260182,670.26,668.66,0.25982171]
[1752141960767,1.51260182,670.25,668.66,0.25982171]
[1752141960966,1.51260182,670.24,668.66,0.25982171]
[1752141961166,1.51260182,670.23,668.66,0.25982171]
[1752141961365,1.51260182,670.22,668.66,0.25982171]
[1752141961566,1.51260182,670.21,668.66,0.25982171]
[1752141961865,1.51260182,670.2,668.66,0.25982171]
[1752141962069,1.51260182,670.19,668.66,0.25982171]
[1752141962368,1.51260182,670.18,668.66,0.25982171]
[1752141962566,1.51260182,670.17,668.66,0.25982171]
[1752141962764,1.51260182,670.16,668.66,0.25982171]
[1752141963065,1.51260182,670.15,668.66,0.25982171]
[1752141963267,1.51260182,670.14,668.66,0.25982171]
[1752141963465,1.66945215,670.57,668.66,0.25982171]
[1752141963766,1.66945215,670.55,668.66,0.25982171]
[1752141963971,1.51249182,670.54,668.66,0.25982171]
[1752141964166,1.51249182,670.53,668.66,0.25982171]
[1752141964470,1.51249182,670.52,668.66,0.25982171]
[1752141964665,1.51249182,670.51,668.66,0.25982171]
[1752141964868,1.66945215,670.57,668.66,0.25982171]
[1752141964869,1.51249182,670.5,668.66,0.25982171]
[1752141965070,1.51249182,670.49,668.66,0.25982171]
[1752141965269,1.51249182,670.48,668.66,0.25982171]
[1752141965566,1.51249182,670.47,668.66,0.25982171]
[1752141965770,1.51249182,670.46,668.66,0.25982171]
[1752141966069,1.51249182,670.45,668.66,0.25982171]
[1752141966270,1.51249182,670.44,668.66,0.25982171]
[1752141966467,1.51249182,670.43,668.66,0.25982171]
[1752141966672,1.51249182,670.42,668.66,0.25982171]
[1752141966869,1.51249182,670.41,668.66,0.25982171]
[1752141967073,1.51249182,670.4,668.66,0.25982171]
[1752141967271,1.51249182,670.39,668.66,0.25982171]
[1752141967471,1.51249182,670.38,668.66,0.25982171]
[1752141967669,1.51113026,670.37,668.66,0.25982171]
[1752141967872,1.51113026,670.36,668.66,0.25982171]
[1752141968069,1.51113026,670.35,668.66,0.25982171]
[1752141968269,1.51113026,670.34,668.66,0.25982171]
[1752141968570,1.51113026,670.33,668.66,0.25982171]
[1752141968770,1.51113026,670.32,668.66,0.25982171]
[1752141968973,1.51113026,670.31,668.66,0.25982171]
[1752141969170,1.51113026,670.3,668.66,0.25982171]
[1752141969374,1.66680461,670.68,668.66,0.25982171]
[1752141969570,1.51027251,670.67,668.66,0.25982171]
[1752141969772,1.51027251,670.66,668.56,5.52994749]
[1752141969974,1.51027251,670.65,668.86,0.25971312]
[1752141970172,1.51027251,670.64,668.86,0.25971312]
[1752141970374,1.51027251,670.63,668.86,0.25971312]
[1752141970572,1.51027251,670.62,668.86,0.25971312]
[1752141970872,1.51027251,670.61,668.86,0.25971312]
[1752141971172,1.51027251,670.6,668.86,0.25971312]
[1752141971371,1.51027251,670.59,668.86,0.25971312]
[1752141971576,1.66680461,670.69,668.86,0.25971312]
[1752141971577,1.51027251,670.58,668.86,0.25971312]
[1752141971773,1.51027251,670.57,668.86,0.25971312]
[1752141971976,1.51027251,670.56,668.86,0.25971312]
[1752141972176,1.66680461,670.69,668.86,0.25971312]
[1752141972177,1.51027251,670.55,668.86,0.25971312]
[1752141972377,1.51027251,670.54,668.86,0.25971312]
[1752141972672,1.51027251,670.53,668.86,0.25971312]
[1752141972873,1.51027251,670.52,668.86,0.25971312]
[1752141973076,1.51027251,670.51,668.86,0.25971312]
[1752141973271,1.51027251,670.5,668.86,0.25971312]
[1752141973475,1.51027251,670.49,668.86,0.25971312]
[1752141973675,1.51027251,670.48,668.86,0.25971312]
[1752141973979,1.51027251,670.47,668.86,0.25971312]
[1752141974174,1.51027251,670.46,668.86,0.25971312]
[1752141974478,1.51027251,670.45,668.86,0.25971312]
[1752141974777,1.51027251,670.44,668.86,0.25971312]
[1752141974975,1.51027251,670.43,668.86,0.25971312]
[1752141975279,1.51027251,670.42,668.86,0.25971312]
[1752141975580,1.51027251,670.41,668.86,0.25971312]
[1752141975780,1.51027251,670.4,668.86,0.25971312]
[1752141976079,1.51027251,670.39,668.86,0.25971312]
[1752141976279,1.51027251,670.38,668.86,0.25971312]
[1752141976478,1.51027251,670.37,668.86,0.25971312]
[1752141976776,1.51027251,670.36,668.86,0.25971312]
[1752141976979,1.51027251,670.35,668.86,0.25971312]
[1752141977177,1.51027251,670.34,668.86,0.25971312]
[1752141977374,1.51027251,670.33,668.86,0.25971312]
[1752141977572,1.51027251,670.32,668.86,0.25971312]
[1752141977777,1.51027251,670.31,668.86,0.25971312]
[1752141977977,1.66680461,670.64,668.86,0.25971312]
[1752141978179,1.50893841,670.63,668.86,0.25971312]
[1752141978482,1.50893841,670.62,668.86,0.25971312]
[1752141978675,1.50893841,670.61,668.86,0.25971312]
[1752141978879,1.50893841,670.6,668.86,0.25971312]
[1752141979078,1.50893841,670.59,668.86,0.25971312]
[1752141979278,1.50893841,670.58,668.86,0.25971312]
[1752141979481,1.50893841,670.57,668.86,0.25971312]
[1752141979682,1.50893841,670.56,668.86,0.25971312]
[1752141979981,1.66680461,670.64,668.86,0.25971312]
[1752141979982,1.50893841,670.55,668.86,0.25971312]
[1752141980181,1.50893841,670.54,668.86,0.25971312]
[1752141980478,1.50893841,670.53,668.86,0.25971312]
[1752141980681,1.50893841,670.52,668.86,0.25971312]
[1752141980878,1.50893841,670.51,668.86,0.25971312]
[1752141981078,1.50893841,670.5,668.86,0.25971312]
[1752141981281,1.50893841,670.49,668.86,0.25971312]
[1752141981476,1.50893841,670.48,668.86,0.25971312]
[1752141981678,1.50893841,670.47,668.86,0.25971312]
[1752141981977,1.50893841,670.46,668.86,0.25971312]
[1752141982181,1.50893841,670.45,668.86,0.25971312]
[1752141982381,1.50893841,670.44,668.86,0.25971312]
[1752141982578,1.50893841,670.43,668.86,0.25971312]
[1752141982779,1.50893841,670.42,668.86,0.25971312]
[1752141983081,1.50893841,670.41,668.86,0.25971312]
[1752141983280,1.50893841,670.4,668.86,0.25971312]
[1752141983479,1.50893841,670.39,668.86,0.25971312]
[1752141983679,1.50893841,670.38,668.86,0.25971312]
[1752141983880,1.50893841,670.37,668.86,0.25971312]
[1752141984081,1.50893841,670.36,668.86,0.25971312]
[1752141984285,1.50893841,670.35,668.86,0.25971312]
[1752141984584,1.50893841,670.34,668.86,0.25971312]
[1752141984780,1.50893841,670.33,668.86,0.25971312]
[1752141984981,1.50893841,670.32,668.86,0.25971312]
[1752141985185,1.50893841,670.31,668.86,0.25971312]
[1752141985485,1.50893841,670.3,668.86,0.25971312]
[1752141985685,1.50893841,670.29,668.86,0.25971312]
[1752141985886,1.50893841,670.28,668.86,0.25971312]
[1752141986082,1.50893841,670.27,668.86,0.25971312]
[1752141986287,1.00485617,670.67,668.86,0.25971312]
[1752141986488,1.66419181,670.51,668.86,0.25971312]